bitfinex/quotes_BTCUSD_20241004
["timestamp","ask_amount","ask_price","bid_price","bid_amount"]
[1728074695689,0.69917268,62479.0,62478.0,0.099921]
[1728074695906,2.16617268,62479.0,62478.0,0.099921]
[1728074696812,2.0593153,62479.0,62478.0,0.099921]
[1728074698416,2.16821965,62479.0,62478.0,0.099921]
[1728074699757,2.16821101,62479.0,62478.0,0.099921]
[1728074701372,2.00819425,62479.0,62478.0,0.099921]
[1728074701618,2.24583488,62479.0,62478.0,0.000821]
[1728074701850,2.32223488,62479.0,62478.0,0.000821]
[1728074702790,2.27665,62479.0,62478.0,0.000821]
[1728074703021,2.2756735,62479.0,62478.0,0.000821]
[1728074703240,2.2776735,62479.0,62478.0,0.000821]
[1728074703453,2.1813672,62479.0,62478.0,0.000821]
[1728074703698,2.2776735,62479.0,62478.0,0.000821]
[1728074707899,2.27800155,62479.0,62478.0,0.000821]
[1728074711920,2.25290231,62479.0,62478.0,0.000821]
[1728074712788,2.25312734,62479.0,62478.0,0.000821]
[1728074714294,2.25112734,62479.0,62478.0,0.000821]
[1728074714703,2.25312734,62479.0,62478.0,0.000821]
[1728074715376,2.61783524,62479.0,62478.0,0.000821]
[1728074716050,2.25312734,62479.0,62478.0,0.000821]
[1728074716508,2.27822757,62479.0,62478.0,0.000821]
[1728074716712,2.25312734,62479.0,62478.0,0.000821]
[1728074717799,2.25300998,62479.0,62478.0,0.000821]
[1728074719189,2.10505347,62479.0,62478.0,0.000821]
[1728074719646,1.93444712,62479.0,62478.0,0.096421]
[1728074719883,1.90934717,62479.0,62478.0,0.096421]
[1728074720107,1.57634717,62479.0,62478.0,0.096421]
[1728074720367,1.55124666,62479.0,62478.0,0.096421]
[1728074722582,1.55211026,62479.0,62478.0,0.096421]
[1728074723064,1.64841656,62479.0,62478.0,0.096421]
[1728074727320,1.67351529,62479.0,62478.0,0.096421]
[1728074728640,1.64841656,62479.0,62478.0,0.096421]
[1728074731953,1.6735147,62479.0,62478.0,0.096421]
[1728074732429,1.67361871,62479.0,62478.0,0.096421]
[1728074732892,1.64852057,62479.0,62478.0,0.096421]
[1728074733110,4.33152057,62479.0,62478.0,0.096421]
[1728074733332,4.3801685,62479.0,62478.0,0.096421]
[1728074733617,4.35129448,62479.0,62478.0,0.096421]
[1728074734280,4.19129448,62479.0,62478.0,0.096421]
[1728074734510,4.14129448,62479.0,62478.0,0.096421]
[1728074734747,4.10829448,62479.0,62478.0,0.096421]
[1728074736273,4.1333932,62479.0,62478.0,0.096421]
[1728074736506,4.0343932,62479.0,62478.0,0.096421]
[1728074736730,3.9313932,62479.0,62478.0,0.096421]
[1728074737413,3.93134984,62479.0,62478.0,0.096421]
[1728074738565,3.93132783,62479.0,62478.0,0.096421]
[1728074739442,3.90622911,62479.0,62478.0,0.096421]
[1728074742314,3.90621635,62479.0,62478.0,0.096421]
[1728074742759,3.93131514,62479.0,62478.0,0.096421]
[1728074742976,3.43131514,62479.0,62478.0,0.096421]
[1728074743656,0.69321635,62479.0,62478.0,0.096421]
[1728074743880,5.43882287,62479.0,62478.0,0.096421]
[1728074744111,5.31121635,62479.0,62478.0,0.096421]
[1728074745181,5.27621635,62479.0,62478.0,0.096421]
[1728074747002,5.30131514,62479.0,62478.0,0.096421]
[1728074747230,5.30133755,62479.0,62478.0,0.096421]
[1728074748835,5.27623876,62479.0,62478.0,0.096421]
[1728074751044,4.71123876,62479.0,62478.0,0.096421]
[1728074751262,4.17523876,62479.0,62478.0,0.096421]
[1728074751477,4.16123876,62479.0,62478.0,0.096421]
[1728074751686,4.01823876,62479.0,62478.0,0.096421]
[1728074751902,3.91923876,62479.0,62478.0,0.096421]
[1728074752126,3.9443631,62479.0,62478.0,0.096421]
[1728074753152,2.51326435,62479.0,62478.0,0.096421]
[1728074753372,2.46461642,62479.0,62478.0,0.096421]
[1728074753581,2.42461642,62479.0,62478.0,0.096421]
[1728074756163,2.44971518,62479.0,62478.0,0.096421]
[1728074756819,2.44975964,62479.0,62478.0,0.096421]
[1728074757222,2.44975013,62479.0,62478.0,0.096421]
[1728074758682,2.34265137,62479.0,62478.0,0.096421]
[1728074761046,2.34227696,62479.0,62478.0,0.096421]
[1728074761914,2.36737576,62479.0,62478.0,0.096421]
[1728074763010,2.34227696,62479.0,62478.0,0.096421]
[1728074766087,2.36737577,62479.0,62478.0,0.096421]
[1728074768267,2.27106947,62479.0,62478.0,0.096421]
[1728074768529,2.27106947,62479.0,62478.0,0.176621]
[1728074768530,0.03042157,62479.0,62478.0,0.176621]
[1728074768770,0.181053,62479.0,62478.0,0.2729273]
[1728074769008,0.07377736,62480.0,62478.0,0.2729273]
[1728074769240,0.07377736,62480.0,62479.0,0.1714]
[1728074769453,0.049695,62480.0,62479.0,0.1714]
[1728074769680,0.001642,62480.0,62479.0,0.1604]
[1728074770557,0.001642,62480.0,62479.0,0.0942]
[1728074770558,0.29947985,62480.0,62479.0,0.0942]
[1728074770797,0.2579993,62480.0,62479.0,0.0942]
[1728074771241,0.3781315,62480.0,62479.0,0.0942]
[1728074771718,0.40322689,62480.0,62479.0,0.0942]
[1728074771932,0.40322689,62480.0,62478.0,0.001821]
[1728074771933,0.1,62479.0,62478.0,0.001821]
[1728074772181,5.51869219,62479.0,62478.0,0.000821]
[1728074772407,5.58865091,62479.0,62478.0,0.000821]
[1728074773480,5.59365091,62479.0,62478.0,0.000821]
[1728074773711,5.59865091,62479.0,62478.0,0.000821]
[1728074773933,5.58865091,62479.0,62478.0,0.000821]
[1728074774145,5.58865091,62479.0,62478.0,0.001821]
[1728074774348,5.59465091,62479.0,62478.0,0.001821]
[1728074775189,5.60465091,62479.0,62478.0,0.002821]
[1728074775611,5.58865091,62479.0,62478.0,0.000821]
[1728074775810,5.59565091,62479.0,62478.0,0.002821]
[1728074776025,5.6227502,62479.0,62478.0,0.002821]
[1728074778497,5.6217502,62479.0,62478.0,0.002821]
[1728074779778,5.67078998,62479.0,62478.0,0.002821]
[1728074780839,5.69589164,62479.0,62478.0,0.002821]
[1728074781893,5.67079235,62479.0,62478.0,0.002821]
[1728074783147,5.67161335,62479.0,62478.0,0.002821]
[1728074783572,5.68837248,62479.0,62478.0,0.002821]
[1728074784846,5.68800934,62479.0,62478.0,0.002821]
[1728074785259,5.71310857,62479.0,62478.0,0.002821]
[1728074785481,5.87629528,62479.0,62478.0,0.002821]
[1728074786128,5.71310857,62479.0,62478.0,0.002821]
[1728074786335,5.68800934,62479.0,62478.0,0.002821]
[1728074789491,5.71310859,62479.0,62478.0,0.002821]
[1728074789710,5.68800934,62479.0,62478.0,0.002821]
[1728074790592,0.63800934,62479.0,62478.0,0.002821]
[1728074790808,5.63896956,62479.0,62478.0,0.002821]
[1728074791026,5.68800934,62479.0,62478.0,0.002821]
[1728074792753,6.05196289,62479.0,62478.0,0.002821]
[1728074792965,6.07706318,62479.0,62478.0,0.002821]
[1728074793431,5.80941593,62479.0,62478.0,0.002821]
[1728074794117,5.78431564,62479.0,62478.0,0.002821]
[1728074797443,5.80941581,62479.0,62478.0,0.002821]
[1728074798768,5.78431564,62479.0,62478.0,0.002821]
[1728074802096,5.80941556,62479.0,62478.0,0.002821]
[1728074803046,5.78431564,62479.0,62478.0,0.002821]
[1728074803250,5.78631564,62479.0,62478.0,0.002821]
[1728074804094,5.78431564,62479.0,62478.0,0.002821]
[1728074804486,0.4608753,62473.0,62472.0,0.00082]
[1728074804928,5.81453269,62473.0,62472.0,0.00082]
[1728074805775,5.81653269,62473.0,62472.0,0.00082]
[1728074805980,5.81753269,62473.0,62472.0,0.00082]
[1728074806391,5.84263388,62473.0,62472.0,0.00082]
[1728074807947,5.74632758,62473.0,62472.0,0.00082]
[1728074808157,5.84263388,62473.0,62472.0,0.00082]
[1728074808394,6.00469684,62473.0,62472.0,0.00082]
[1728074808605,6.00469402,62473.0,62472.0,0.00082]
[1728074808845,1.72709283,62473.0,62472.0,0.09612]
[1728074809065,1.51599291,62473.0,62472.0,0.09612]
[1728074809271,1.51550997,62473.0,62472.0,0.09612]
[1728074811562,1.67756677,62473.0,62472.0,0.09612]
[1728074811790,0.09901111,62473.0,62472.0,0.17832]
[1728074811994,0.07500666,62473.0,62472.0,0.17832]
[1728074812199,0.04800426,62474.0,62473.0,0.0923]
[1728074812446,0.07310232,62475.0,62474.0,0.1745]
[1728074812985,0.23316632,62475.0,62474.0,0.1745]
[1728074813200,0.20806826,62475.0,62474.0,0.1745]
[1728074813406,0.160064,62475.0,62474.0,0.1745]
[1728074813608,0.04800426,62476.0,62474.0,0.1745]
[1728074813824,0.20806626,62476.0,62474.0,0.1745]
[1728074814027,0.04799086,62476.0,62474.0,0.1745]
[1728074814439,0.001,62475.0,62474.0,0.1805]
[1728074814865,0.001,62475.0,62474.0,0.1875]
[1728074814866,0.161064,62475.0,62474.0,0.1875]
[1728074815086,0.001,62476.0,62474.0,0.1815]
[1728074815294,0.160064,62475.0,62474.0,0.1915]
[1728074815525,0.160064,62475.0,62474.0,0.1845]
[1728074815755,0.160064,62475.0,62474.0,0.1745]
[1728074815756,0.20805486,62475.0,62474.0,0.1745]
[1728074816019,0.20905486,62475.0,62474.0,0.1955]
[1728074816239,0.21005486,62475.0,62474.0,0.1955]
[1728074816461,0.162064,62475.0,62474.0,0.1955]
[1728074816675,0.21007076,62475.0,62474.0,0.1955]
[1728074817410,0.21007124,62475.0,62474.0,0.1955]
[1728074817847,0.23516736,62475.0,62474.0,0.1955]
[1728074818718,0.21007124,62475.0,62474.0,0.1955]
[1728074818935,0.162064,62475.0,62474.0,0.1955]
[1728074819161,0.21006547,62475.0,62474.0,0.1955]
[1728074821418,0.162064,62475.0,62474.0,0.1955]
[1728074821825,0.18716024,62475.0,62474.0,0.1955]
[1728074822309,0.23516171,62475.0,62474.0,0.1955]
[1728074822510,0.23516171,62475.0,62474.0,0.1133]
[1728074824435,0.18716024,62475.0,62474.0,0.1133]
[1728074826176,0.162064,62475.0,62474.0,0.1133]
[1728074827012,0.21006547,62475.0,62474.0,0.1133]
[1728074827440,0.23405524,62475.0,62474.0,0.1133]
[1728074827916,0.23405524,62475.0,62474.0,0.021]
[1728074827917,0.2583703,62475.0,62474.0,0.021]
[1728074828151,0.35437324,62475.0,62474.0,0.021]
[1728074828367,0.2583703,62475.0,62474.0,0.021]
[1728074828603,0.2573703,62475.0,62474.0,0.013]
[1728074829087,0.2583703,62475.0,62474.0,0.019]
[1728074829298,0.28346817,62475.0,62474.0,0.019]
[1728074829526,0.28246817,62475.0,62474.0,0.006]
[1728074829736,0.28246817,62475.0,62474.0,0.01]
[1728074830206,0.28146817,62475.0,62474.0,0.004]
[1728074830425,0.160069,62473.0,62472.0,0.00082]
[1728074830646,0.25600984,62473.0,62472.0,0.00082]
[1728074831720,0.25700984,62473.0,62472.0,0.00582]
[1728074833288,0.25700984,62473.0,62472.0,0.00982]
[1728074834006,0.28210868,62473.0,62472.0,0.00982]
[1728074834221,0.02609884,62473.0,62472.0,0.4445973]
[1728074834878,0.001,62473.0,62472.0,0.4445973]
[1728074835103,0.001,62473.0,62472.0,0.4405973]
[1728074835595,0.001,62473.0,62472.0,0.344291]
[1728074836464,0.002,62473.0,62472.0,0.354291]
[1728074836901,0.001642,62475.0,62472.0,0.17922]
[1728074837109,0.001642,62475.0,62474.0,0.160066]
[1728074838418,0.002642,62475.0,62474.0,0.173066]
[1728074839881,0.002642,62475.0,62474.0,0.185066]
[1728074839882,0.003642,62475.0,62474.0,0.185066]
[1728074840785,0.003642,62475.0,62474.0,0.42894724]
[1728074840999,0.003642,62475.0,62474.0,0.51124724]
[1728074841719,0.0162323,62484.0,62483.0,0.33172424]
[1728074841969,0.0162323,62484.0,62483.0,0.58221095]
[1728074842191,0.43978233,62508.0,62498.0,0.242305]
[1728074842192,0.319974,62506.0,62498.0,0.242305]
[1728074842408,0.159982,62507.0,62498.0,0.242305]
[1728074842633,0.159983,62507.0,62498.0,0.242305]
[1728074842871,0.01690095,62499.0,62498.0,0.339505]
[1728074843351,0.01690095,62499.0,62498.0,0.1795]
[1728074843563,0.01690095,62499.0,62498.0,0.339505]
[1728074843793,0.01690095,62499.0,62498.0,0.1795]
[1728074844011,0.01690095,62499.0,62498.0,0.353505]
[1728074844252,0.01790095,62499.0,62498.0,0.2065]
[1728074846242,0.0014,62499.0,62498.0,0.2065]
[1728074846475,0.0178847,62499.0,62498.0,0.2065]
[1728074849709,0.0014,62499.0,62498.0,0.2065]
[1728074850174,0.0007585,62517.0,62508.0,0.159979]
[1728074850397,0.0007585,62517.0,62512.0,0.38475024]
[1728074850648,0.0007585,62517.0,62512.0,0.86266024]
[1728074850889,0.0007585,62517.0,62512.0,0.70369124]
[1728074851121,0.0007585,62517.0,62516.0,0.30664024]
[1728074851584,0.0007585,62517.0,62516.0,0.78652024]
[1728074852277,0.0007585,62517.0,62516.0,0.94970695]
[1728074852929,0.159928,62528.0,62521.0,0.30662724]
[1728074853157,0.159928,62528.0,62521.0,0.78646724]
[1728074853628,0.159931,62527.0,62521.0,0.78646724]
[1728074855175,0.159931,62527.0,62521.0,0.79946724]
[1728074855384,0.259913,62534.0,62521.0,0.79946724]
[1728074855609,0.1,62534.0,62521.0,0.79946724]
[1728074855837,0.259913,62534.0,62521.0,0.79946724]
[1728074856052,0.1,62534.0,62521.0,0.81346724]
[1728074856258,0.259913,62534.0,62521.0,0.81346724]
[1728074857091,0.159905,62537.0,62521.0,0.81346724]
[1728074857337,0.04182485,62531.0,62521.0,0.98706724]
[1728074857571,0.02507642,62531.0,62521.0,0.98706724]
[1728074858235,0.02507642,62531.0,62521.0,1.15025395]
[1728074858449,0.02507642,62531.0,62521.0,1.13725395]
[1728074858891,0.02507642,62531.0,62521.0,1.15125395]
[1728074859335,0.02507642,62531.0,62521.0,1.13725395]
[1728074859811,0.02507642,62531.0,62521.0,1.15125395]
[1728074862224,0.02507642,62531.0,62521.0,1.13725395]
[1728074862449,0.001642,62538.0,62521.0,1.14225395]
[1728074862669,0.001642,62538.0,62521.0,1.25525395]
[1728074862917,0.001642,62538.0,62521.0,1.24325395]
[1728074863127,0.001642,62538.0,62521.0,1.25725395]
[1728074863594,0.159911,62535.0,62521.0,1.10357271]
[1728074863811,0.0829,62532.0,62521.0,0.652786]
[1728074864045,0.159917,62533.0,62521.0,0.652786]
[1728074864264,0.159917,62533.0,62521.0,0.653786]
[1728074864486,0.402713,62537.0,62521.0,0.639786]
[1728074864939,0.159917,62533.0,62521.0,0.653786]
[1728074865158,0.159913,62534.0,62521.0,0.653786]
[1728074865401,0.402713,62537.0,62521.0,0.653786]
[1728074865632,0.159915,62533.0,62521.0,0.653786]
[1728074865867,0.319827,62534.0,62521.0,0.667786]
[1728074866094,0.159918,62532.0,62521.0,0.653786]
[1728074866311,0.319827,62534.0,62521.0,0.667786]
[1728074866958,0.159921,62531.0,62521.0,0.667786]
[1728074867192,0.319827,62534.0,62521.0,0.667786]
[1728074867476,0.161583,62522.0,62521.0,0.50784]
[1728074868358,0.161583,62522.0,62521.0,0.49384]
[1728074868573,0.161583,62522.0,62521.0,0.50784]
[1728074868782,0.161583,62522.0,62521.0,0.49384]
[1728074869416,0.161583,62522.0,62521.0,0.47984]
[1728074869852,0.161583,62522.0,62521.0,0.48784]
[1728074870037,0.161583,62522.0,62521.0,0.47984]
[1728074870526,0.161583,62522.0,62521.0,0.48784]
[1728074870746,0.161583,62522.0,62521.0,0.47984]
[1728074870955,0.161583,62522.0,62521.0,0.48684]
[1728074871599,0.161583,62522.0,62521.0,0.47984]
[1728074872037,0.161583,62522.0,62521.0,0.48884]
[1728074872257,0.161583,62522.0,62521.0,0.47984]
[1728074872483,0.161583,62522.0,62521.0,0.48784]
[1728074872706,0.161583,62522.0,62521.0,0.49684]
[1728074872916,0.161583,62522.0,62521.0,0.48784]
[1728074873348,0.161583,62522.0,62521.0,0.49684]
[1728074874006,0.161583,62522.0,62521.0,0.48884]
[1728074874437,0.161583,62522.0,62521.0,0.49684]
[1728074875952,0.18666045,62522.0,62521.0,0.49684]
[1728074881953,0.2031485,62522.0,62521.0,0.49684]
[1728074884855,0.17807105,62522.0,62521.0,0.49684]
[1728074893002,0.17818486,62522.0,62521.0,0.49684]
[1728074895464,0.22605579,62522.0,62521.0,0.49684]
[1728074897062,0.22605579,62522.0,62521.0,0.49655011]
[1728074903485,0.17818486,62522.0,62521.0,0.49655011]
[1728074906001,0.17818486,62522.0,62521.0,0.48855011]
[1728074906445,0.01824186,62522.0,62521.0,0.49055011]
[1728074906697,0.01824186,62522.0,62521.0,0.65049611]
[1728074906918,0.01824186,62522.0,62521.0,0.74709611]
[1728074907154,0.01824186,62522.0,62521.0,0.75509611]
[1728074907618,0.01824186,62522.0,62521.0,0.74609611]
[1728074907833,0.00164,62522.0,62521.0,0.76009611]
[1728074908272,0.00164,62522.0,62521.0,0.74609611]
[1728074908517,0.00164,62522.0,62521.0,0.75209611]
[1728074908735,0.00164,62522.0,62521.0,0.73809611]
[1728074908948,0.00164,62522.0,62521.0,0.75109611]
[1728074909160,0.00164,62522.0,62521.0,0.76509611]
[1728074909413,0.00164,62522.0,62521.0,0.75209611]
[1728074909861,0.00164,62522.0,62521.0,0.76609611]
[1728074913235,0.00164,62522.0,62521.0,0.86223741]
[1728074913483,0.00164,62522.0,62521.0,1.10312412]
[1728074915362,0.00164,62522.0,62521.0,1.10476412]
[1728074916314,0.00164,62522.0,62521.0,1.09076412]
[1728074916538,0.00164,62522.0,62521.0,1.10676412]
[1728074916973,0.00164,62522.0,62521.0,1.07876412]
[1728074917213,0.00164,62522.0,62521.0,1.10676412]
[1728074923088,0.00164,62522.0,62521.0,1.11176412]
[1728074924677,0.00164,62522.0,62521.0,1.09776412]
[1728074925856,0.001642,62538.0,62537.0,0.159905]
[1728074926090,0.001642,62538.0,62537.0,1.02654301]
[1728074926312,0.001642,62538.0,62537.0,1.02854301]
[1728074927035,0.001642,62538.0,62537.0,1.02825312]
[1728074927713,0.001642,62538.0,62537.0,1.04225312]
[1728074929108,0.001642,62538.0,62537.0,1.05625312]
[1728074929542,0.001642,62538.0,62537.0,1.04225312]
[1728074929759,0.001642,62538.0,62537.0,1.05625312]
[1728074930011,0.001642,62538.0,62537.0,1.05425312]
[1728074930241,0.001642,62538.0,62537.0,0.83081182]
[1728074931179,0.001642,62538.0,62537.0,0.81681182]
[1728074931624,0.001642,62538.0,62537.0,0.92695312]
[1728074931939,0.001642,62538.0,62537.0,1.02285312]
[1728074932176,0.001642,62538.0,62537.0,1.08815312]
[1728074932395,0.001642,62538.0,62537.0,1.10215312]
[1728074934343,0.001642,62538.0,62537.0,0.92471182]
[1728074934561,0.001642,62538.0,62537.0,1.02285312]
[1728074937228,0.001642,62538.0,62537.0,1.2632127]
[1728074938112,0.001642,62538.0,62537.0,1.02785312]
[1728074938762,0.001642,62538.0,62537.0,0.83081182]
[1728074939209,0.001642,62538.0,62537.0,0.83245182]
[1728074941356,0.001642,62538.0,62537.0,1.0778114]
[1728074941575,0.001642,62538.0,62537.0,1.0798114]
[1728074942027,0.001642,62538.0,62537.0,1.22115693]
[1728074942233,0.001642,62538.0,62537.0,1.39805693]
[1728074942897,0.001642,62538.0,62537.0,1.39305693]
[1728074943111,0.001642,62538.0,62537.0,1.39805693]
[1728074945125,0.001642,62538.0,62537.0,1.07379735]
[1728074945801,0.001642,62538.0,62537.0,0.97879735]
[1728074946022,0.001642,62538.0,62537.0,0.98379735]
[1728074946477,0.001642,62538.0,62537.0,0.97879735]
[1728074947865,0.078342,62538.0,62537.0,0.50965]
[1728074948341,0.078342,62538.0,62537.0,0.669555]
[1728074948800,0.078342,62538.0,62537.0,0.655555]
[1728074949242,0.078342,62538.0,62537.0,0.641555]
[1728074949448,0.078342,62538.0,62537.0,0.655555]
[1728074949689,0.078342,62538.0,62537.0,0.641555]
[1728074950134,0.078342,62538.0,62537.0,0.655555]
[1728074951089,0.078342,62538.0,62537.0,0.669555]
[1728074951529,0.078342,62538.0,62537.0,0.655555]
[1728074951774,0.001642,62538.0,62537.0,0.81590053]
[1728074952445,0.001642,62538.0,62537.0,0.97908724]
[1728074954445,0.001642,62538.0,62537.0,0.83274171]
[1728074955562,0.001642,62538.0,62537.0,0.50965]
[1728074955802,0.001642,62538.0,62537.0,0.669555]
[1728074956031,0.001642,62538.0,62537.0,0.83474171]
[1728074956258,0.001642,62538.0,62537.0,0.83274171]
[1728074958136,0.001642,62538.0,62537.0,0.81874171]
[1728074958347,0.001642,62538.0,62537.0,0.82074171]
[1728074958819,0.001642,62538.0,62537.0,0.82574171]
[1728074959054,0.001642,62538.0,62537.0,0.93974171]
[1728074959309,0.001642,62538.0,62537.0,1.13084171]
[1728074960440,0.001642,62538.0,62537.0,1.11684171]
[1728074961114,0.001642,62538.0,62537.0,1.10284171]
[1728074961541,0.001642,62538.0,62537.0,1.13084171]
[1728074961759,0.001642,62538.0,62537.0,1.11684171]
[1728074961979,0.001642,62538.0,62537.0,1.10284171]
[1728074962211,0.001642,62538.0,62537.0,1.13084171]
[1728074964053,0.001642,62538.0,62537.0,1.17866097]
[1728074964267,0.001642,62538.0,62537.0,1.13084171]
[1728074966057,0.001642,62538.0,62537.0,1.05464171]
[1728074966288,0.001642,62538.0,62537.0,0.96274171]
[1728074967438,0.001642,62538.0,62537.0,0.93974171]
[1728074975778,0.001642,62538.0,62537.0,1.03576366]
[1728074985996,0.001642,62538.0,62537.0,1.05876366]
[1728074988275,0.001642,62538.0,62537.0,1.1065972]
[1728074989703,0.001642,62538.0,62537.0,1.0925972]
[1728074989931,0.001642,62538.0,62537.0,1.05876366]
[1728074990373,0.001642,62538.0,62537.0,1.04476366]
[1728074990807,0.001642,62538.0,62537.0,1.05876366]
[1728074993222,0.001642,62538.0,62537.0,1.1065972]
[1728074993505,0.001642,62538.0,62537.0,1.05876366]
[1728074994373,0.001642,62538.0,62537.0,1.1065972]
[1728074995069,0.001642,62538.0,62537.0,1.05876366]
[1728074996407,0.001642,62538.0,62537.0,1.1065972]
[1728074996835,0.001642,62538.0,62537.0,1.13051398]
[1728074998498,0.001642,62538.0,62537.0,1.05876366]
[1728074999451,0.001642,62538.0,62537.0,1.15443075]
[1728075001480,0.001642,62538.0,62537.0,1.05876366]
[1728075002877,0.001642,62538.0,62537.0,1.15456813]
[1728075003320,0.001642,62538.0,62537.0,1.05876366]
[1728075003558,0.172042,62538.0,62537.0,0.83774171]
[1728075003787,0.172042,62538.0,62537.0,0.669555]
[1728075004495,0.172042,62538.0,62537.0,0.660555]
[1728075004739,0.172042,62538.0,62537.0,0.646555]
[1728075004973,0.172042,62538.0,62537.0,0.674555]
[1728075005413,0.172042,62538.0,62537.0,0.669555]
[1728075006081,0.172042,62538.0,62537.0,0.655555]
[1728075006508,0.172042,62538.0,62537.0,0.669555]
[1728075006736,0.172042,62538.0,62537.0,0.655555]
[1728075006972,0.172042,62538.0,62537.0,0.669555]
[1728075007892,0.331944,62538.0,62537.0,0.50965]
[1728075008618,0.37986712,62538.0,62537.0,0.50965]
[1728075008943,0.331944,62538.0,62537.0,0.50965]
[1728075009184,0.40382868,62538.0,62537.0,0.50965]
[1728075009409,0.3799025,62538.0,62537.0,0.49565]
[1728075009663,0.3799025,62538.0,62537.0,0.50265]
[1728075009897,0.3799025,62538.0,62537.0,0.49565]
[1728075010143,0.3799025,62538.0,62537.0,0.40165]
[1728075010418,0.331944,62538.0,62537.0,0.30165]
[1728075011089,0.331944,62538.0,62537.0,0.28765]
[1728075011318,0.331944,62538.0,62537.0,0.29465]
[1728075011766,0.331944,62538.0,62537.0,0.28765]
[1728075012002,0.331944,62538.0,62537.0,0.29365]
[1728075013674,0.077042,62538.0,62537.0,0.453555]
[1728075014622,0.077042,62538.0,62537.0,0.447555]
[1728075014851,0.077042,62538.0,62537.0,0.452555]
[1728075015298,0.077042,62538.0,62537.0,0.447555]
[1728075015515,0.077042,62538.0,62537.0,0.441555]
[1728075015743,0.077042,62538.0,62537.0,0.461555]
[1728075016158,0.077042,62538.0,62537.0,0.455555]
[1728075016434,0.077042,62538.0,62537.0,0.469555]
[1728075022743,0.077042,62538.0,62537.0,0.30965]
[1728075022961,0.48302511,62538.0,62537.0,0.30965]
[1728075023641,0.336644,62538.0,62537.0,0.28165]
[1728075023857,0.336644,62538.0,62537.0,0.29565]
[1728075024352,0.336644,62538.0,62537.0,0.28165]
[1728075024782,0.336644,62538.0,62537.0,0.28565]
[1728075026147,0.336644,62538.0,62537.0,0.29965]
[1728075026359,0.336644,62538.0,62537.0,0.28565]
[1728075026568,0.336644,62538.0,62537.0,0.29065]
[1728075027450,0.36171413,62538.0,62537.0,0.29065]
[1728075027682,0.001642,62538.0,62537.0,0.29065]
[1728075027937,0.001642,62538.0,62537.0,0.450555]
[1728075028417,0.001642,62538.0,62537.0,0.446555]
[1728075028846,0.001642,62538.0,62537.0,0.441555]
[1728075029292,0.001642,62538.0,62537.0,0.455555]
[1728075029938,0.001642,62538.0,62537.0,0.459555]
[1728075030365,0.001642,62538.0,62537.0,0.61874171]
[1728075030791,0.001642,62538.0,62537.0,0.63274171]
[1728075032167,0.001642,62538.0,62537.0,0.63474171]
[1728075034513,0.001642,62538.0,62537.0,0.469555]
[1728075041304,0.001642,62538.0,62537.0,0.30965]
[1728075041723,0.01639203,62538.0,62537.0,0.30965]
[1728075042395,0.01639203,62538.0,62537.0,0.469555]
[1728075043964,0.001642,62538.0,62537.0,0.469555]
[1728075044173,0.01637852,62538.0,62537.0,0.469555]
[1728075046075,0.001642,62538.0,62537.0,0.469555]
[1728075054690,0.001642,62538.0,62537.0,0.71013611]
[1728075054924,0.001642,62538.0,62537.0,0.71213611]
[1728075055159,0.001642,62538.0,62537.0,0.71013611]
[1728075058585,0.001642,62538.0,62537.0,0.469555]
[1728075069720,0.001642,62538.0,62537.0,0.73014171]
[1728075069965,0.001642,62538.0,62537.0,0.81354171]
[1728075072793,0.001642,62538.0,62537.0,0.81983137]
[1728075073424,0.001642,62538.0,62537.0,0.80583137]
[1728075074347,0.001642,62538.0,62537.0,0.79754171]
[1728075074566,0.001642,62538.0,62537.0,0.71614171]
[1728075074792,0.001642,62538.0,62537.0,0.86252282]
[1728075075240,0.001642,62538.0,62537.0,0.87652282]
[1728075079058,0.001642,62538.0,62537.0,0.566955]
[1728075079511,0.01382376,62538.0,62537.0,0.566955]
[1728075079741,0.001642,62538.0,62537.0,0.566955]
[1728075080433,0.001642,62538.0,62537.0,0.73014171]
[1728075081741,0.001642,62538.0,62537.0,0.82618365]
[1728075084878,0.001642,62538.0,62537.0,0.82818365]
[1728075085651,0.001642,62538.0,62537.0,0.82618365]
[1728075086093,0.001642,62538.0,62537.0,0.82818365]
[1728075087435,0.001642,62538.0,62537.0,1.01178365]
[1728075087668,0.001642,62538.0,62537.0,1.05966492]
[1728075088103,0.001642,62538.0,62537.0,1.04566492]
[1728075088332,0.001642,62538.0,62537.0,1.01178365]
[1728075089040,0.001642,62538.0,62537.0,0.98378365]
[1728075089284,0.001642,62538.0,62537.0,0.99778365]
[1728075089493,0.001642,62538.0,62537.0,1.01178365]
[1728075089702,0.001642,62538.0,62537.0,0.99778365]
[1728075089883,0.001642,62538.0,62537.0,1.01178365]
[1728075091565,0.001642,62538.0,62537.0,0.93318365]
[1728075091979,0.001642,62538.0,62537.0,0.91918365]
[1728075092452,0.001642,62538.0,62537.0,0.93318365]
[1728075096064,0.001642,62538.0,62537.0,0.93118365]
[1728075102203,0.001642,62538.0,62537.0,0.469555]
[1728075102434,0.082742,62538.0,62537.0,0.469555]
[1728075102881,0.001642,62538.0,62537.0,0.469555]
[1728075105601,0.081842,62538.0,62537.0,0.30965]
[1728075105820,0.09194904,62538.0,62537.0,0.469555]
[1728075106270,0.09194904,62538.0,62537.0,0.29565]
[1728075106503,0.09194904,62538.0,62537.0,0.455555]
[1728075106712,0.09194904,62538.0,62537.0,0.469555]
[1728075106938,0.09194904,62538.0,62537.0,0.56559694]
[1728075107173,0.09194904,62538.0,62537.0,0.55159694]
[1728075107382,0.09194904,62538.0,62537.0,0.56559694]
[1728075107608,0.09194904,62538.0,62537.0,0.469555]
[1728075107822,0.09194904,62538.0,62537.0,0.441555]
[1728075108348,0.09194904,62538.0,62537.0,0.455555]
[1728075108571,0.09194904,62538.0,62537.0,0.441555]
[1728075108798,0.09194904,62538.0,62537.0,0.469555]
[1728075109035,0.09194904,62538.0,62537.0,0.455555]
[1728075109470,0.081842,62538.0,62537.0,0.469555]
[1728075110319,0.081842,62538.0,62537.0,0.455555]
[1728075110529,0.081842,62538.0,62537.0,0.469555]
[1728075111388,0.081842,62538.0,62537.0,0.455555]